bitfinex/quotes_BTCUSD_20220731
["timestamp","ask_amount","ask_price","bid_price","bid_amount"]
[1659250687503,0.40725733,23789.0,23786.0,0.21268227]
[1659250688055,0.40725733,23789.0,23786.0,0.210124]
[1659250688714,0.40725733,23789.0,23786.0,0.510124]
[1659250688942,0.86793555,23790.0,23786.0,0.665188]
[1659250689174,0.86793555,23790.0,23786.0,0.715188]
[1659250689878,0.303714,23789.0,23786.0,0.315188]
[1659250690114,0.86793555,23790.0,23786.0,0.315188]
[1659250691420,0.86793555,23790.0,23787.0,0.00290679]
[1659250691641,0.86793555,23790.0,23787.0,0.29264378]
[1659250692188,0.303714,23789.0,23787.0,0.29264378]
[1659250692411,0.86793555,23790.0,23787.0,0.29264378]
[1659250692641,0.46067822,23790.0,23787.0,0.34264378]
[1659250693088,0.0032,23790.0,23788.0,0.420199]
[1659250693319,0.0022,23791.0,23789.0,0.05]
[1659250693537,0.0022,23791.0,23790.0,0.26299342]
[1659250693989,0.03687316,23791.0,23790.0,0.260087]
[1659250694240,0.0022,23791.0,23790.0,0.210087]
[1659250695146,1.36865049,23791.0,23781.0,0.210181]
[1659250695414,0.05,23789.0,23781.0,0.210181]
[1659250695691,0.05,23789.0,23778.0,0.35644692]
[1659250695692,0.70725733,23788.0,23778.0,0.35644692]
[1659250695937,0.97355733,23787.0,23779.0,0.40725733]
[1659250696158,0.40725733,23786.0,23778.0,0.73213425]
[1659250696378,0.43371038,23785.0,23778.0,0.73213425]
[1659250697295,0.43371038,23785.0,23779.0,0.210193]
[1659250697732,0.43371038,23785.0,23779.0,1.030555]
[1659250702596,0.84096771,23785.0,23779.0,1.030555]
[1659250706965,0.0022,23791.0,23780.0,0.45725733]
[1659250707367,0.0022,23791.0,23790.0,0.05]
[1659250707585,0.0022,23791.0,23790.0,0.00214789]
[1659250708191,0.305914,23791.0,23789.0,0.210106]
[1659250708358,0.0022,23791.0,23789.0,0.210106]
[1659250711208,0.03687316,23791.0,23789.0,0.210106]
[1659250711666,0.83617566,23790.0,23786.0,0.210136]
[1659250711897,0.0990365,23787.0,23786.0,0.210136]
[1659250712156,0.29997699,23789.0,23786.0,0.210136]
[1659250712376,0.303714,23788.0,23786.0,0.210136]
[1659250712590,0.159727,23787.0,23786.0,0.210136]
[1659250712819,0.29997699,23789.0,23786.0,0.210136]
[1659250713052,0.303714,23788.0,23786.0,0.210136]
[1659250713283,0.159727,23787.0,23786.0,0.210136]
[1659250713529,1.13617566,23790.0,23786.0,0.210136]
[1659250713778,0.303714,23789.0,23786.0,0.210136]
[1659250713983,0.159727,23788.0,23786.0,0.210136]
[1659250714225,0.303714,23787.0,23786.0,0.210136]
[1659250714442,0.83617566,23790.0,23786.0,0.210136]
[1659250714666,0.303714,23789.0,23786.0,0.210136]
[1659250714914,0.159727,23788.0,23786.0,0.210136]
[1659250715155,0.0990365,23787.0,23786.0,0.210136]
[1659250715387,0.0990365,23787.0,23783.0,0.105061]
[1659250715602,0.0990365,23787.0,23783.0,0.315222]
[1659250715821,0.0990365,23787.0,23784.0,0.05]
[1659250716043,0.0990365,23787.0,23785.0,0.00165874]
[1659250716300,0.83617566,23790.0,23785.0,0.00165874]
[1659250716513,0.71097133,23789.0,23784.0,0.003]
[1659250716724,0.40725733,23788.0,23784.0,0.003]
[1659250716945,0.303714,23787.0,23785.0,0.00165874]
[1659250717167,0.40725733,23788.0,23785.0,0.00165874]
[1659250719780,1.13617566,23790.0,23785.0,0.21179574]
[1659250721187,0.303714,23789.0,23785.0,0.210137]
[1659250721398,0.19440016,23788.0,23785.0,0.210137]
[1659250721657,0.40725733,23789.0,23785.0,0.210137]
[1659250721875,0.303714,23788.0,23785.0,0.210137]
[1659250722093,0.40725733,23789.0,23785.0,0.510137]
[1659250722790,0.40725733,23789.0,23786.0,0.10514994]
[1659250723469,0.40725733,23789.0,23786.0,0.40514994]
[1659250723913,0.40725733,23789.0,23786.0,0.10514994]
[1659250724131,0.44193049,23789.0,23786.0,0.10514994]
[1659250724348,0.44193049,23789.0,23786.0,0.40514994]
[1659250724570,0.44193049,23789.0,23786.0,0.105067]
[1659250724788,0.03467316,23789.0,23786.0,0.105067]
[1659250725003,0.303714,23788.0,23786.0,0.105067]
[1659250725228,0.03467316,23789.0,23786.0,0.105067]
[1659250726528,0.303714,23788.0,23786.0,0.105067]
[1659250726755,0.03467316,23789.0,23786.0,0.105067]
[1659250727661,0.03467316,23789.0,23785.0,0.210137]
[1659250727662,0.44193049,23789.0,23785.0,0.210137]
[1659250728136,0.303714,23788.0,23785.0,0.210137]
[1659250728363,0.159727,23787.0,23785.0,0.210137]
[1659250728601,0.44193049,23789.0,23785.0,0.210137]
[1659250728838,0.3,23788.0,23785.0,0.210137]
[1659250729071,0.44193049,23789.0,23785.0,0.210137]
[1659250730482,0.71097133,23788.0,23785.0,0.210137]
[1659250730706,0.159727,23787.0,23785.0,0.210137]
[1659250730941,0.40725733,23788.0,23785.0,0.210137]
[1659250731162,0.303714,23787.0,23785.0,0.210137]
[1659250731391,0.0990365,23786.0,23782.0,0.315238]
[1659250731868,0.0990365,23786.0,23782.0,0.21017]
[1659250732106,0.0990365,23786.0,23780.0,2.12569156]
[1659250732326,0.42089494,23785.0,23779.0,0.210193]
[1659250732562,0.42089494,23785.0,23782.0,0.078]
[1659250732563,0.82815227,23785.0,23782.0,0.078]
[1659250733082,0.82815227,23785.0,23782.0,0.288164]
[1659250733745,0.82815227,23785.0,23782.0,0.210164]
[1659250734513,0.86282543,23785.0,23782.0,0.210164]
[1659250734911,0.82815227,23785.0,23782.0,0.210164]
[1659250735479,0.42089494,23785.0,23783.0,0.00221035]
[1659250735910,0.4555681,23785.0,23782.0,0.210164]
[1659250736113,0.303714,23784.0,23782.0,0.210164]
[1659250736257,0.4555681,23785.0,23782.0,0.210164]
[1659250738610,0.42089494,23785.0,23782.0,0.210164]
[1659250739070,0.42089494,23785.0,23782.0,0.260164]
[1659250739340,0.3,23788.0,23783.0,0.303714]
[1659250739566,0.40725733,23787.0,23782.0,0.315247]
[1659250739789,0.7591825,23786.0,23782.0,0.315247]
[1659250740009,0.86272583,23786.0,23782.0,0.315247]
[1659250740679,0.03467316,23785.0,23782.0,0.315247]
[1659250741989,0.86272583,23786.0,23782.0,0.315247]
[1659250742553,0.40725733,23786.0,23783.0,0.4]
[1659250742755,0.40725733,23786.0,23783.0,0.6898636]
[1659250743224,0.40725733,23786.0,23784.0,0.0001105]
[1659250743804,0.40725733,23786.0,23783.0,0.6898636]
[1659250743970,0.40725733,23786.0,23783.0,0.2898636]
[1659250744409,0.40725733,23786.0,23783.0,0.2899741]
[1659250744640,0.40725733,23786.0,23765.0,0.0011]
[1659250744641,0.0990365,23768.0,23765.0,0.0011]
[1659250744880,0.0990365,23768.0,23765.0,0.42167]
[1659250744881,0.1,23766.0,23765.0,0.42167]
[1659250745105,0.1,23766.0,23765.0,0.0011]
[1659250745106,0.703714,23766.0,23765.0,0.0011]
[1659250745337,0.39683089,23766.0,23765.0,0.0011]
[1659250745583,0.09311689,23766.0,23765.0,0.0011]
[1659250745834,0.39683089,23766.0,23765.0,0.0011]
[1659250746299,0.44683089,23766.0,23765.0,0.0011]
[1659250746532,0.93033089,23766.0,23765.0,0.0011]
[1659250747253,0.43683089,23766.0,23765.0,0.0011]
[1659250747703,0.34683089,23766.0,23765.0,0.0011]
[1659250747916,0.04311689,23766.0,23765.0,0.0011]
[1659250748163,0.04322739,23766.0,23765.0,0.0011]
[1659250748397,0.08322739,23766.0,23765.0,0.0011]
[1659250749807,0.04311689,23766.0,23765.0,0.0011]
[1659250750483,0.08311689,23766.0,23765.0,0.0011]
[1659250751840,0.04311689,23766.0,23765.0,0.0011]
[1659250752398,0.08311689,23766.0,23765.0,0.0011]
[1659250752855,0.08311689,23766.0,23765.0,0.00123461]
[1659250753533,0.08311689,23766.0,23765.0,0.0011]
[1659250753762,0.04311689,23774.0,23765.0,0.50259081]
[1659250753985,0.04311689,23774.0,23766.0,1.36097133]
[1659250753986,0.45037422,23774.0,23766.0,1.36097133]
[1659250754213,0.40725733,23775.0,23767.0,0.40725733]
[1659250754449,0.04311689,23777.0,23767.0,0.40725733]
[1659250754450,0.40725733,23776.0,23768.0,0.35]
[1659250754689,0.40725733,23776.0,23769.0,0.73884733]
[1659250754919,0.303714,23775.0,23769.0,0.75725733]
[1659250755152,0.159727,23774.0,23769.0,0.45725733]
[1659250755386,0.40725733,23776.0,23769.0,0.75725733]
[1659250755881,0.40725733,23776.0,23769.0,0.45725733]
[1659250756100,0.303714,23775.0,23770.0,0.05]
[1659250756331,0.40725733,23776.0,23769.0,0.45725733]
[1659250756557,0.303714,23775.0,23769.0,0.40725733]
[1659250756776,0.159727,23774.0,23769.0,0.40725733]
[1659250757010,0.303714,23773.0,23769.0,0.50725733]
[1659250757411,0.03478366,23772.0,23769.0,0.50725733]
[1659250757631,0.25422041,23775.0,23769.0,0.50725733]
[1659250757863,0.40725733,23776.0,23770.0,0.3]
[1659250758077,0.04311689,23777.0,23770.0,0.73883733]
[1659250758299,0.04311689,23773.0,23769.0,0.45725733]
[1659250758563,0.04311689,23773.0,23770.0,0.00227043]
[1659250759240,0.04311689,23773.0,23767.0,0.3]
[1659250759459,0.04311689,23773.0,23767.0,0.80725733]
[1659250759713,0.04311689,23773.0,23768.0,0.74256133]
[1659250759941,0.04311689,23773.0,23769.0,0.40725733]
[1659250760162,0.04311689,23773.0,23769.0,0.50725733]
[1659250760397,0.04311689,23773.0,23770.0,0.40725733]
[1659250760828,0.03478366,23772.0,23769.0,0.40725733]
[1659250761110,0.03478366,23772.0,23769.0,0.43884733]
[1659250761335,0.03478366,23772.0,23769.0,0.45725733]
[1659250761559,0.04311689,23773.0,23769.0,0.45725733]
[1659250762235,0.04311689,23773.0,23769.0,0.40725733]
[1659250762516,0.04311689,23773.0,23769.0,0.48625733]
[1659250763179,0.04311689,23773.0,23769.0,0.53625733]
[1659250763411,0.04311689,23773.0,23770.0,0.00100528]
[1659250764113,0.04311689,23777.0,23770.0,0.00100528]
[1659250764339,0.303714,23776.0,23770.0,0.00100528]
[1659250764563,0.159727,23775.0,23770.0,0.08000528]
[1659250764790,0.40725733,23776.0,23770.0,0.08000528]
[1659250765102,0.45037422,23776.0,23770.0,0.43000528]
[1659250765326,0.45037422,23776.0,23770.0,0.46158528]
[1659250765552,0.45037422,23776.0,23770.0,0.43000528]
[1659250765792,0.303714,23775.0,23770.0,0.35100528]
[1659250766019,0.45037422,23776.0,23771.0,0.05]
[1659250766260,0.303714,23775.0,23772.0,0.40725733]
[1659250766482,0.210273,23778.0,23773.0,0.33158]
[1659250766719,0.04311689,23779.0,23774.0,1.01097133]
[1659250766966,0.00023384,23783.0,23778.0,0.0999995]
[1659250767197,0.00023384,23783.0,23778.0,1.04254133]
[1659250767461,0.04311689,23785.0,23779.0,0.653714]
[1659250767668,0.04311689,23785.0,23779.0,0.35]
[1659250767910,0.04311689,23785.0,23779.0,0.65]
[1659250768136,0.04311689,23785.0,23779.0,1.05725733]
[1659250768369,0.04311689,23785.0,23779.0,1.08882733]
[1659250768604,0.04311689,23785.0,23779.0,1.05725733]
[1659250768870,0.04311689,23785.0,23779.0,0.75725733]
[1659250769110,0.04311689,23785.0,23779.0,0.78882733]
[1659250769786,0.04303957,23785.0,23779.0,0.78882733]
[1659250770913,0.04303957,23785.0,23779.0,0.75725733]
[1659250771432,0.04303957,23787.0,23779.0,1.05725733]
[1659250771655,0.04303957,23787.0,23780.0,0.40725733]
[1659250771888,0.20276657,23787.0,23780.0,0.45725733]
[1659250772112,0.20276657,23787.0,23781.0,0.45725733]
[1659250773111,0.40725733,23786.0,23779.0,0.35]
[1659250773333,0.303714,23785.0,23779.0,0.1]
[1659250773575,0.303714,23785.0,23769.0,0.699888]
[1659250773576,0.04303957,23776.0,23769.0,0.699888]
[1659250773811,0.45725733,23781.0,23770.0,0.71097133]
[1659250773812,0.04303957,23780.0,23770.0,0.71097133]
[1659250774046,0.04303957,23776.0,23771.0,1.04255133]
[1659250774263,0.04303957,23776.0,23772.0,0.71097133]
[1659250774481,0.04303957,23776.0,23773.0,1.04255133]
[1659250774702,0.04303957,23776.0,23774.0,0.303714]
[1659250774998,0.04303957,23776.0,23775.0,0.4037135]
[1659250775235,0.04303957,23780.0,23775.0,0.0999995]
[1659250775454,0.34675357,23780.0,23775.0,0.0999995]
[1659250775687,0.159727,23779.0,23775.0,0.0999995]
[1659250775926,0.03478366,23778.0,23775.0,0.0999995]
[1659250776147,0.04303957,23780.0,23773.0,0.40725733]
[1659250776370,0.04303957,23780.0,23775.0,0.079]
[1659250776630,0.303714,23779.0,23775.0,0.079]
[1659250776863,0.03478366,23778.0,23775.0,0.079]
[1659250777101,0.04303957,23776.0,23775.0,0.08197689]
[1659250777327,0.04303957,23776.0,23775.0,0.079]
[1659250777786,0.04303957,23776.0,23773.0,0.35]
[1659250778032,0.04303957,23778.0,23774.0,0.05]
[1659250778261,0.04303957,23778.0,23774.0,0.1]
[1659250778500,0.04303957,23778.0,23774.0,0.05]
[1659250778722,0.04303957,23778.0,23773.0,0.079]
[1659250778954,0.04303957,23778.0,23773.0,0.129]
[1659250779197,0.35,23774.0,23773.0,0.079]
[1659250779436,0.73153723,23774.0,23773.0,0.079]
[1659250779913,0.94184723,23774.0,23768.0,0.5467]
[1659250780152,0.94184723,23774.0,23768.0,0.40725733]
[1659250780153,0.63813323,23774.0,23768.0,0.40725733]
[1659250780896,0.04303957,23773.0,23768.0,0.40725733]
[1659250781145,0.61754433,23777.0,23769.0,0.335304]
[1659250781385,0.61754433,23777.0,23769.0,0.33159]
[1659250781386,0.40725733,23776.0,23769.0,0.33159]
[1659250781603,0.40725733,23776.0,23770.0,0.3]
[1659250781831,0.40725733,23776.0,23770.0,0.35]
[1659250782066,0.62823957,23778.0,23770.0,1.05725733]
[1659250782067,0.40725733,23777.0,23770.0,1.05725733]
[1659250782296,0.40725733,23777.0,23771.0,0.05]
[1659250783011,0.40725733,23777.0,23771.0,0.08150891]
[1659250783465,0.40725733,23777.0,23771.0,0.04992891]
[1659250785143,0.303714,23776.0,23771.0,0.04992891]
[1659250785377,0.40725733,23777.0,23771.0,0.04992891]
[1659250786307,0.04303957,23776.0,23771.0,0.04992891]
[1659250788396,0.04303957,23776.0,23771.0,0.34992891]
[1659250788619,0.04303957,23776.0,23772.0,0.3]
[1659250788853,0.04303957,23776.0,23771.0,0.04992891]
[1659250789319,0.04292865,23776.0,23771.0,0.04992891]
[1659250789531,0.40725733,23777.0,23771.0,0.04992891]
[1659250792108,0.40725733,23779.0,23772.0,0.40725733]
[1659250792347,0.40725733,23779.0,23773.0,0.35]
[1659250793787,0.40725733,23779.0,23773.0,0.05]
[1659250794011,0.40725733,23779.0,23773.0,0.35]
[1659250794243,0.303714,23778.0,23773.0,0.05]
[1659250794468,0.159727,23777.0,23773.0,0.05]
[1659250794696,0.159727,23777.0,23772.0,0.45725733]
[1659250794918,0.04292865,23778.0,23772.0,0.45725733]
[1659250795597,0.40725733,23777.0,23772.0,0.05]
[1659250795892,0.303714,23776.0,23771.0,0.35]
[1659250796107,0.45018598,23775.0,23771.0,0.1]
[1659250796339,0.45018598,23775.0,23771.0,0.05]
[1659250796549,0.45018598,23775.0,23770.0,0.35]
[1659250797692,0.45018598,23775.0,23770.0,0.05]
[1659250798422,0.45018598,23775.0,23770.0,0.426]
[1659250798653,0.04292865,23775.0,23770.0,0.426]
[1659250798886,0.67019865,23779.0,23770.0,0.426]
[1659250799108,0.71097133,23778.0,23770.0,0.426]
[1659250799326,0.56698433,23777.0,23770.0,0.426]
[1659250799554,0.40725733,23776.0,23770.0,0.426]
[1659250799803,0.40725733,23776.0,23770.0,0.126]
[1659250800240,0.40286733,23776.0,23770.0,0.05]
[1659250800472,0.40286733,23776.0,23770.0,0.35]
[1659250800947,0.04292865,23775.0,23770.0,0.35]
[1659250801193,0.04292865,23775.0,23770.0,0.05]
[1659250801409,0.45018598,23775.0,23770.0,0.05]
[1659250801631,0.45018598,23775.0,23768.0,0.65349772]
[1659250801863,0.45018598,23775.0,23769.0,0.7]
[1659250802332,0.04292865,23778.0,23770.0,0.303714]
[1659250802556,0.40725733,23777.0,23769.0,1.10725733]
[1659250803005,0.40725733,23777.0,23769.0,1.13884733]
[1659250803236,0.5957,23779.0,23771.0,0.260223]
[1659250803579,1.00295733,23779.0,23772.0,0.43883733]
[1659250803706,0.40725733,23779.0,23772.0,0.53883733]
[1659250803944,0.40725733,23779.0,23773.0,0.3]
[1659250804197,0.40725733,23780.0,23773.0,1.00725733]
[1659250805343,0.40725733,23780.0,23773.0,1.21745833]
[1659250805575,0.40725733,23780.0,23773.0,0.91745833]
[1659250806051,0.40725733,23781.0,23774.0,0.40725733]
[1659250806302,0.3,23780.0,23775.0,0.29988908]
[1659250806529,0.3,23780.0,23775.0,0.39988908]
[1659250807206,0.303714,23779.0,23775.0,0.39988908]
[1659250807439,0.3,23780.0,23775.0,0.1]
[1659250807674,0.303714,23779.0,23775.0,0.1]
[1659250807908,0.3,23780.0,23775.0,0.1]
[1659250808137,0.303714,23779.0,23775.0,0.1]
[1659250808387,0.3,23780.0,23775.0,0.1]
[1659250808655,0.303714,23779.0,23775.0,0.4]
[1659250808878,0.3,23780.0,23774.0,1.03525733]
[1659250809091,0.3,23780.0,23775.0,0.3]
[1659250809321,0.01298825,23776.0,23775.0,0.3]
[1659250809783,0.01298825,23776.0,23775.0,0.35]
[1659250810031,0.01298825,23776.0,23774.0,1.08525733]
[1659250810478,0.01298825,23776.0,23775.0,0.036]
[1659250810722,0.4040809,23776.0,23775.0,0.036]
[1659250810964,0.1003669,23776.0,23775.0,0.036]
[1659250811488,0.0559169,23776.0,23775.0,0.036]
[1659250811715,0.3596309,23776.0,23769.0,1.18789]
[1659250811941,0.3,23777.0,23770.0,0.40725733]
[1659250812166,0.40725733,23777.0,23770.0,0.45725733]
[1659250812384,0.40725733,23777.0,23771.0,0.603843]
[1659250812599,0.40725733,23777.0,23771.0,0.3]
[1659250813265,0.653756,23782.0,23771.0,0.3]
[1659250813266,1.533,23783.0,23772.0,0.303843]
[1659250813512,1.533,23783.0,23773.0,0.70725733]
[1659250813513,0.70725733,23782.0,23773.0,0.70725733]
[1659250813764,0.40725733,23781.0,23774.0,0.66745133]
[1659250813993,0.603843,23780.0,23774.0,0.66745133]
[1659250814219,0.103457,23779.0,23774.0,0.66745133]
[1659250814448,0.303843,23778.0,23774.0,0.66745133]
[1659250814668,0.3,23780.0,23775.0,0.3]
[1659250814902,0.40725733,23781.0,23775.0,0.05]
[1659250815143,0.303843,23780.0,23774.0,0.66745133]
[1659250815374,0.3,23780.0,23774.0,0.66745133]
[1659250815816,0.40725733,23781.0,23774.0,0.66745133]
[1659250816067,0.303843,23780.0,23774.0,0.66745133]
[1659250816335,0.3,23780.0,23774.0,0.66745133]
[1659250816559,0.303843,23779.0,23774.0,0.66745133]
[1659250816779,0.3,23780.0,23774.0,0.66745133]
[1659250817216,0.3,23780.0,23775.0,0.3]
[1659250817409,0.40725733,23781.0,23774.0,0.66745133]
[1659250817410,0.303843,23779.0,23774.0,0.66745133]
[1659250817655,0.40725733,23781.0,23775.0,0.3]
[1659250818111,0.40725733,23781.0,23775.0,0.05]
[1659250818332,0.303843,23780.0,23776.0,0.05]
[1659250818583,0.40725733,23781.0,23777.0,0.00279656]
[1659250818899,0.303843,23780.0,23777.0,0.00279656]
[1659250819039,0.103457,23779.0,23777.0,0.00279656]
[1659250819271,0.03478366,23780.0,23777.0,0.00279656]
[1659250819505,0.303843,23779.0,23777.0,0.00279656]
[1659250819955,0.303843,23779.0,23776.0,0.05]
[1659250820201,0.03478366,23780.0,23777.0,0.00013983]
[1659250820420,0.303843,23779.0,23775.0,0.35]
[1659250820648,0.03478366,23780.0,23776.0,0.05]
[1659250820884,0.303843,23779.0,23776.0,0.05]
[1659250821147,0.303843,23779.0,23775.0,0.05]
[1659250821381,0.303843,23779.0,23774.0,0.66745133]
[1659250821595,0.03478366,23780.0,23775.0,0.35]
[1659250821832,0.03478366,23780.0,23775.0,0.4]
[1659250822051,0.303843,23779.0,23775.0,0.05]
[1659250822277,0.03478366,23780.0,23776.0,0.00279668]
[1659250822503,0.303843,23779.0,23776.0,0.00279668]
[1659250822782,0.40725733,23781.0,23776.0,0.00279668]
[1659250823020,0.303843,23780.0,23776.0,0.00279668]
[1659250823244,0.103457,23779.0,23776.0,0.00279668]
[1659250823464,0.40725733,23781.0,23776.0,0.00279668]
[1659250823690,0.303843,23780.0,23776.0,0.00279668]
[1659250823918,0.13824066,23779.0,23776.0,0.00279668]
[1659250824155,0.40725733,23781.0,23776.0,0.00279668]
[1659250824372,0.303798,23780.0,23776.0,0.00279668]
[1659250824601,0.098509,23779.0,23776.0,0.00279668]
[1659250824831,0.40725733,23781.0,23776.0,0.00279668]
[1659250825070,0.40725733,23781.0,23776.0,0.05279668]
[1659250826013,0.303798,23780.0,23776.0,0.05279668]
[1659250826250,0.3,23782.0,23777.0,0.40725733]
[1659250826472,0.303798,23781.0,23777.0,0.45725733]
[1659250826732,0.03478366,23780.0,23777.0,0.40725733]
[1659250826955,0.3,23782.0,23777.0,0.40725733]
[1659250827398,0.303798,23781.0,23777.0,0.40725733]
[1659250827612,0.295,23782.0,23777.0,0.40725733]
[1659250827613,0.13329266,23780.0,23777.0,0.40725733]
[1659250827853,0.295,23782.0,23777.0,0.40725733]
[1659250828079,0.303798,23781.0,23777.0,0.40725733]
[1659250828313,0.295,23782.0,23777.0,0.45725733]
[1659250828792,0.303798,23781.0,23777.0,0.45725733]
[1659250829022,0.9538,23783.0,23777.0,0.45725733]
[1659250829238,0.603798,23782.0,23777.0,0.45725733]
[1659250829465,0.098509,23781.0,23777.0,0.45725733]
[1659250829703,0.5938,23783.0,23777.0,0.45725733]
[1659250829920,0.303798,23782.0,23777.0,0.45725733]
[1659250830128,0.098509,23781.0,23777.0,0.45725733]
[1659250830377,0.33858166,23780.0,23777.0,0.05]
[1659250830598,0.098509,23779.0,23776.0,0.05]
[1659250830818,0.3,23782.0,23776.0,0.45725733]
[1659250831067,0.303798,23781.0,23776.0,0.45725733]
[1659250831287,0.3,23780.0,23776.0,0.05]
[1659250831505,0.33858166,23779.0,23775.0,0.35]
[1659250831735,0.3,23780.0,23776.0,0.00223928]
[1659250831975,0.303798,23779.0,23776.0,0.00223928]
[1659250832207,0.40725733,23781.0,23776.0,0.00223928]
[1659250832426,0.3,23777.0,23773.0,0.54]
[1659250832687,0.40725733,23779.0,23770.0,0.241823]
[1659250832688,0.03478366,23776.0,23770.0,0.241823]
[1659250832906,0.3,23778.0,23771.0,0.71105533]
[1659250833147,0.40725733,23779.0,23772.0,0.40725733]
[1659250834059,0.40725733,23779.0,23773.0,0.3]
[1659250834348,0.40725733,23779.0,23773.0,0.35]
[1659250834557,0.40725733,23779.0,23773.0,0.560226]
[1659250835229,0.3,23781.0,23774.0,0.40725733]
[1659250835498,0.3,23781.0,23775.0,0.35]
[1659250835725,0.3,23781.0,23775.0,0.75725733]
[1659250835948,0.3,23781.0,23775.0,0.80725733]
[1659250836415,0.3,23781.0,23775.0,0.50725733]
[1659250837113,0.303798,23780.0,23775.0,0.50725733]
[1659250837335,0.70725733,23781.0,23775.0,0.1]
[1659250837579,0.303798,23780.0,23775.0,0.1]
[1659250837813,0.098509,23779.0,23774.0,0.3]
[1659250838070,0.70725733,23781.0,23774.0,0.80725733]
[1659250840975,0.303798,23780.0,23774.0,0.45725733]
[1659250841196,0.398509,23779.0,23774.0,0.45725733]
[1659250841420,0.3,23779.0,23774.0,0.50725733]
[1659250843457,0.70725733,23781.0,23774.0,0.50725733]
[1659250843908,0.303798,23780.0,23774.0,0.50725733]
[1659250844141,0.70725733,23781.0,23775.0,0.05]
[1659250844383,0.303798,23780.0,23774.0,0.45725733]
[1659250844617,0.70725733,23781.0,23774.0,0.45725733]
[1659250844849,0.303798,23780.0,23774.0,0.50725733]
[1659250845081,0.70725733,23781.0,23774.0,0.50725733]
[1659250845820,0.70725733,23781.0,23775.0,0.3]
[1659250846051,0.70725733,23781.0,23775.0,0.35]
[1659250846277,0.303798,23780.0,23775.0,0.35]
[1659250846519,0.70725733,23781.0,23775.0,0.35]
[1659250846968,0.303798,23780.0,23774.0,0.40725733]
[1659250847195,0.098509,23779.0,23774.0,0.45725733]
[1659250847429,0.70725733,23781.0,23774.0,0.50725733]
[1659250847652,0.303798,23780.0,23774.0,0.50725733]
[1659250847883,0.70725733,23781.0,23774.0,0.50725733]
[1659250848130,0.303798,23780.0,23774.0,0.50725733]
[1659250848400,0.70725733,23781.0,23774.0,0.50725733]
[1659250848628,0.303798,23780.0,23774.0,0.50725733]
[1659250848844,0.70725733,23781.0,23774.0,0.45725733]
[1659250849068,0.303798,23780.0,23774.0,0.50725733]
[1659250849301,0.70725733,23781.0,23774.0,0.50725733]
[1659250849520,0.303798,23780.0,23774.0,0.50725733]
[1659250849838,0.70725733,23781.0,23774.0,0.50725733]
[1659250850539,0.71105533,23780.0,23774.0,0.1]
[1659250850762,0.50576633,23779.0,23773.0,0.510226]
[1659250850994,0.40725733,23779.0,23773.0,0.260226]
[1659250851214,0.40725733,23779.0,23774.0,0.05]
[1659250852094,0.40725733,23779.0,23773.0,0.260226]
[1659250852386,0.40716723,23779.0,23773.0,0.210226]
[1659250852609,0.40716723,23779.0,23773.0,0.260226]
[1659250852838,0.40716723,23779.0,23773.0,0.310226]
[1659250853071,0.40716723,23779.0,23774.0,0.3]
[1659250854229,0.40725733,23781.0,23774.0,0.81236033]
[1659250856104,0.3,23780.0,23774.0,0.81236033]
[1659250856348,0.303798,23779.0,23774.0,0.70725733]
[1659250856560,0.3,23780.0,23774.0,0.70725733]
[1659250857931,0.3,23780.0,23774.0,0.40725733]
[1659250858171,0.303798,23779.0,23774.0,0.40725733]
[1659250858394,0.098509,23778.0,23774.0,0.40725733]
[1659250858610,0.3,23780.0,23774.0,0.40725733]
[1659250859294,0.40725733,23781.0,23775.0,0.3]
[1659250859536,0.303798,23780.0,23775.0,0.4]
[1659250859797,0.40725733,23781.0,23775.0,0.4]
[1659250860025,0.303798,23780.0,23775.0,0.4]
[1659250860273,0.40725733,23781.0,23775.0,0.05]
[1659250860519,0.303798,23780.0,23774.0,0.50725733]
[1659250860732,0.40725733,23781.0,23774.0,0.50725733]
[1659250861448,0.40725733,23781.0,23775.0,0.3]
[1659250861674,0.40725733,23781.0,23775.0,0.35]
[1659250861888,0.303798,23780.0,23775.0,0.35]
[1659250862110,0.40725733,23781.0,23775.0,0.35]
[1659250863091,0.303798,23780.0,23775.0,0.35]
[1659250863317,0.40725733,23781.0,23775.0,0.35]
[1659250863558,0.303798,23780.0,23775.0,0.35]
[1659250863805,0.40725733,23781.0,23775.0,0.35]
[1659250864085,0.303798,23780.0,23775.0,0.35]
[1659250864303,0.40725733,23781.0,23775.0,0.35]
[1659250864748,0.303798,23780.0,23774.0,0.51971465]
[1659250864986,0.303798,23780.0,23774.0,0.40725733]
[1659250864987,0.3,23780.0,23774.0,0.40725733]
[1659250865202,0.303798,23779.0,23774.0,0.40725733]
[1659250865420,0.3,23780.0,23774.0,0.40725733]
[1659250866355,0.3,23780.0,23774.0,0.50725733]
[1659250867044,0.40725733,23781.0,23775.0,0.3]
[1659250867285,0.40725733,23781.0,23775.0,0.35]
[1659250867521,0.303798,23780.0,23775.0,0.35]
[1659250867753,0.40725733,23781.0,23775.0,0.35]
[1659250868013,0.40725733,23781.0,23774.0,0.50725733]
[1659250869855,0.40725733,23781.0,23774.0,0.51999515]
[1659250870091,0.40714912,23781.0,23774.0,0.51999515]
[1659250870317,0.40714912,23781.0,23775.0,0.3]
[1659250870586,0.603798,23780.0,23774.0,0.51999515]
[1659250870811,0.50576633,23779.0,23769.0,0.94219]
[1659250871047,0.603798,23778.0,23771.0,0.40725733]
[1659250871323,0.098509,23777.0,23771.0,0.40725733]
[1659250871546,0.303798,23776.0,23771.0,0.40725733]
[1659250871833,0.098509,23775.0,23771.0,0.40725733]
[1659250872075,0.3,23778.0,23771.0,0.40725733]
[1659250872076,0.03478366,23774.0,23771.0,0.40725733]
[1659250872307,0.3,23778.0,23771.0,0.40725733]
[1659250872530,0.303798,23777.0,23771.0,0.48525733]
[1659250872754,0.098509,23776.0,23771.0,0.48525733]
[1659250872978,0.3,23778.0,23771.0,0.48525733]
[1659250873196,0.303798,23777.0,23771.0,0.48525733]
[1659250873419,0.098509,23776.0,23771.0,0.53525733]
[1659250873646,0.3,23778.0,23771.0,0.53525733]
[1659250873647,0.303798,23775.0,23771.0,0.58525733]